bitfinex/quotes_SOLUSD_20240917
["timestamp","ask_amount","ask_price","bid_price","bid_amount"]
[1726594362380,7.806224,133.33,133.3,7.5013]
[1726594362584,30.0,133.31,133.3,7.5013]
[1726594363785,30.0,133.31,133.3,9.00147934]
[1726594364485,30.0,133.31,133.3,7.5013]
[1726594365190,30.0,133.31,133.3,9.00144578]
[1726594365780,30.0,133.31,133.3,24.68094578]
[1726594367792,7.8073399,133.35,133.34,7.4996]
[1726594368085,37.8073399,133.35,133.34,7.4996]
[1726594368975,23.902374,133.34,133.3,15.6795]
[1726594369176,23.902374,133.34,133.32,7.5003]
[1726594369177,30.0,133.33,133.32,7.5003]
[1726594370290,7.80578925,133.37,133.3,15.6795]
[1726594371593,7.80578925,133.37,133.31,1.49978384]
[1726594372070,7.80578925,133.37,133.3,15.6795]
[1726594372602,23.776884,133.36,133.3,15.6795]
[1726594372789,23.902374,133.36,133.33,7.5]
[1726594373096,30.0,133.34,133.33,7.5]
[1726594373882,23.776884,133.36,133.35,7.499]
[1726594374091,1.57841134,133.39,133.31,1.50001978]
[1726594374267,8.07986968,133.39,133.31,21.50001978]
[1726594374810,0.2726012,133.39,133.31,21.50001978]
[1726594374983,0.2726012,133.39,133.38,7.4973]
[1726594375185,30.2726012,133.39,133.31,21.50001978]
[1726594375495,30.2726012,133.39,133.37,7.4975]
[1726594376398,30.2726012,133.39,133.38,7.4973]
[1726594376604,54.1749752,133.39,133.38,7.4973]
[1726594377075,30.2726012,133.39,133.38,7.4973]
[1726594377794,23.902374,133.38,133.3,15.6795]
[1726594377991,30.0,133.37,133.3,15.6795]
[1726594378394,30.0,133.37,133.35,7.4986]
[1726594378579,30.0,133.37,133.34,7.4994]
[1726594378784,30.0,133.37,133.35,7.4989]
[1726594379769,30.0,133.37,133.34,7.4994]
[1726594380094,23.776884,133.36,133.35,7.499]
[1726594380315,53.776884,133.36,133.35,7.499]
[1726594380599,30.0,133.36,133.35,7.499]
[1726594380974,30.0,133.36,133.34,7.4995]
[1726594381174,30.0,133.36,133.35,7.499]
[1726594382186,30.0,133.36,133.34,7.4994]
[1726594382395,30.0,133.36,133.3,15.6795]
[1726594383183,23.776884,133.35,133.33,7.5]
[1726594383383,53.776884,133.35,133.33,7.5]
[1726594383700,0.12549,133.34,133.3,15.6795]
[1726594383879,0.12549,133.34,133.31,7.501]
[1726594384276,23.776884,133.33,133.31,7.501]
[1726594385377,30.0,133.32,133.31,7.501]
[1726594385572,23.776884,133.31,133.27,16.6637]
[1726594385798,23.776884,133.31,133.29,7.5022]
[1726594385992,30.0,133.32,133.3,7.5018]
[1726594386699,30.0,133.32,133.31,7.5013]
[1726594388284,53.776884,133.32,133.3,7.5017]
[1726594388592,23.776884,133.31,133.3,7.5017]
[1726594388791,23.776884,133.31,133.29,7.5022]
[1726594389499,23.776884,133.31,133.27,7.5033]
[1726594389500,0.12549,133.3,133.27,7.5033]
[1726594389816,0.12549,133.3,133.28,7.5029]
[1726594390894,0.12549,133.3,133.27,7.5033]
[1726594391094,0.12549,133.3,133.26,0.2486167]
[1726594391282,23.902374,133.28,133.26,0.2486167]
[1726594391489,0.12549,133.3,133.26,0.2486167]
[1726594391697,7.5035,133.28,133.26,0.2486167]
[1726594391895,23.902374,133.27,133.26,0.2486167]
[1726594392804,23.902374,133.3,133.26,0.2486167]
[1726594392988,23.902374,133.3,133.27,7.503]
[1726594394209,23.776884,133.3,133.28,7.5029]
[1726594394399,7.80812815,133.31,133.3,7.5018]
[1726594394584,7.80812815,133.31,133.26,1.74905799]
[1726594394785,7.80812815,133.31,133.29,7.5022]
[1726594396203,0.12549,133.3,133.28,7.5027]
[1726594396406,23.902374,133.3,133.27,7.5033]
[1726594396586,23.902374,133.3,133.28,7.5029]
[1726594397414,23.902374,133.3,133.26,0.2486167]
[1726594397705,23.902374,133.3,133.27,7.5031]
[1726594397908,23.776884,133.3,133.26,0.2486167]
[1726594398093,7.80812815,133.31,133.29,7.5021]
[1726594399194,23.776884,133.3,133.28,7.5028]
[1726594400588,0.12549,133.29,133.26,0.2486167]
[1726594400990,0.12549,133.29,133.26,7.7523167]
[1726594401189,23.776884,133.28,133.26,7.7523167]
[1726594402089,7.93569011,133.29,133.27,7.5035]
[1726594402290,7.81020011,133.29,133.28,7.503]
[1726594402715,23.902374,133.28,133.26,0.2486167]
[1726594403121,23.902374,133.28,133.26,7.7526167]
[1726594403509,23.776884,133.28,133.27,7.5035]
[1726594404016,30.0,133.32,133.29,7.5023]
[1726594404396,7.80921173,133.3,133.29,7.5023]
[1726594406317,7.80921173,133.3,133.26,7.7522167]
[1726594406510,23.776884,133.29,133.28,7.5029]
[1726594406717,7.80921173,133.3,133.29,7.5024]
[1726594407217,7.8082959,133.31,133.3,7.5015]
[1726594407819,30.0,133.32,133.3,7.5015]
[1726594408410,23.902374,133.31,133.27,15.7414]
[1726594408608,23.902374,133.31,133.29,7.5024]
[1726594409231,23.902374,133.31,133.26,6.5452167]
[1726594409524,23.902374,133.31,133.27,7.5032]
[1726594409525,31.403974,133.31,133.27,7.5032]
[1726594410230,23.902374,133.31,133.28,7.5028]
[1726594411027,23.902374,133.31,133.27,7.5033]
[1726594411623,31.403874,133.31,133.27,7.5033]
[1726594412206,31.403874,133.31,133.26,7.7524167]
[1726594413930,23.902374,133.31,133.28,7.5026]
[1726594414131,30.0,133.32,133.29,7.5023]
[1726594414431,30.0,133.32,133.26,1.74919741]
[1726594414605,30.0,133.32,133.31,7.5013]
[1726594417338,7.80729199,133.35,133.31,7.5013]
[1726594417702,23.902374,133.34,133.31,7.5013]
[1726594417907,23.902374,133.34,133.3,7.5017]
[1726594418104,23.902374,133.34,133.29,7.5023]
[1726594418702,31.402174,133.34,133.29,7.5023]
[1726594419521,58.0334678,133.39,133.26,1.74897312]
[1726594419522,11.3761333,133.41,133.31,6.2591]
[1726594419723,0.285778,133.39,133.36,7.4981]
[1726594419928,0.285778,133.39,133.31,6.2591]
[1726594421040,0.12549,133.38,133.31,6.2591]
[1726594421219,0.12549,133.36,133.31,6.2591]
[1726594421534,0.12549,133.36,133.34,7.4991]
[1726594422429,23.776884,133.38,133.35,7.499]
[1726594422737,0.12549,133.38,133.36,7.4984]
[1726594423536,0.12549,133.38,133.35,7.4988]
[1726594424434,0.12549,133.38,133.36,7.4984]
[1726594426026,0.12549,133.38,133.31,6.2591]
[1726594426236,0.12549,133.36,133.34,7.4992]
[1726594426533,0.12549,133.36,133.31,6.2591]
[1726594426717,23.776884,133.35,133.32,7.5005]
[1726594426924,23.776884,133.35,133.33,7.5001]
[1726594427111,0.12549,133.34,133.3,15.8785]
[1726594428038,0.12549,133.34,133.32,7.5007]
[1726594430033,7.4975,133.38,133.31,1.50011632]
[1726594430330,31.58251874,133.37,133.35,7.4989]
[1726594432414,31.58251874,133.37,133.34,7.4993]
[1726594432814,0.12549,133.36,133.34,7.4995]
[1726594433539,0.12549,133.36,133.33,7.5]
[1726594434334,0.12549,133.34,133.3,15.8785]
[1726594434534,0.12549,133.34,133.31,7.5012]
[1726594434919,0.12549,133.34,133.32,7.5007]
[1726594435832,0.12549,133.34,133.31,7.501]
[1726594437141,0.12549,133.34,133.32,7.5007]
[1726594439543,7.4994,133.35,133.31,7.501]
[1726594439714,7.4996,133.34,133.3,7.5016]
[1726594440117,23.776884,133.33,133.31,7.5012]
[1726594440317,23.902374,133.33,133.31,7.5012]
[1726594441721,7.79850706,133.34,133.28,1.50028591]
[1726594441921,23.7365,133.38,133.34,7.4995]
[1726594442322,15.29454408,133.38,133.34,7.4995]
[1726594442819,15.29454408,133.38,133.3,1.49992046]
[1726594443043,7.79684408,133.38,133.35,7.499]
[1726594443842,7.79684408,133.38,133.36,7.4983]
[1726594444045,7.79684408,133.38,133.35,7.4988]
[1726594445747,23.776884,133.37,133.34,7.4994]
[1726594446720,30.0,133.36,133.35,7.499]
[1726594448133,0.285778,133.39,133.36,7.498]
[1726594448338,30.0,133.37,133.36,7.498]
[1726594448536,0.285778,133.39,133.38,7.4973]
[1726594449249,30.285778,133.39,133.38,7.4973]
[1726594452520,0.285778,133.39,133.38,7.4973]
[1726594455141,0.285778,133.39,133.35,7.4989]
[1726594455344,30.285778,133.39,133.35,7.4989]
[1726594455832,30.285778,133.39,133.36,7.4984]
[1726594456862,30.285778,133.39,133.33,6.4975]
[1726594457662,23.776884,133.38,133.33,6.4975]
[1726594459232,23.776884,133.38,133.35,7.499]
[1726594459656,30.0,133.37,133.35,7.499]
[1726594460560,30.0,133.37,133.36,7.4985]
[1726594467851,30.0,133.37,133.35,7.499]
[1726594468374,30.0,133.37,133.36,7.4985]
[1726594474472,53.776884,133.37,133.33,6.4975]
[1726594474780,30.0,133.37,133.33,6.4975]
[1726594474975,30.0,133.37,133.32,20.0]
[1726594475163,30.0,133.37,133.34,7.4992]
[1726594475359,30.0,133.37,133.33,7.5001]
[1726594475360,37.4984,133.37,133.33,7.5001]
[1726594475585,23.902374,133.36,133.33,7.5001]
[1726594475756,23.776884,133.34,133.32,7.5005]
[1726594476183,23.776884,133.34,133.31,7.5011]
[1726594476477,0.12549,133.33,133.31,7.5011]
[1726594477281,30.12549,133.33,133.31,7.5011]
[1726594477979,0.12549,133.33,133.31,7.5011]
[1726594479781,23.776884,133.34,133.27,22.0503]
[1726594479963,11.3786333,133.37,133.33,7.5001]
[1726594480280,11.3786333,133.37,133.31,7.5012]
[1726594480281,7.4993,133.35,133.31,7.5012]
[1726594480959,30.0,133.32,133.3,7.5016]
[1726594481160,30.0,133.32,133.25,0.4824689]
[1726594481161,23.776884,133.31,133.28,7.5026]
[1726594481483,23.902374,133.31,133.29,7.5023]
[1726594481866,30.0,133.32,133.3,7.5018]
[1726594482062,30.12549,133.32,133.31,7.5013]
[1726594482265,53.902374,133.32,133.31,7.5013]
[1726594482466,53.776884,133.32,133.31,7.5013]
[1726594485282,53.776884,133.32,133.3,7.5016]
[1726594485988,23.902374,133.31,133.25,0.4824689]
[1726594486168,7.5019,133.3,133.26,7.504]
[1726594486365,23.902374,133.31,133.27,7.5033]
[1726594487069,23.902374,133.31,133.28,7.5028]
[1726594487411,23.902374,133.31,133.29,7.5023]
[1726594487766,23.902374,133.31,133.28,7.5028]
[1726594488175,23.902374,133.31,133.29,7.5022]
[1726594488378,37.79662767,133.32,133.3,7.5018]
[1726594490373,37.79662767,133.32,133.29,7.5022]
[1726594490881,37.79662767,133.32,133.25,15.63142359]
[1726594490882,23.902374,133.31,133.28,7.5028]
[1726594491403,23.902374,133.31,133.29,7.5022]
[1726594492105,23.902374,133.29,133.26,7.504]
[1726594492313,23.902374,133.29,133.25,0.4824689]
[1726594493103,23.902374,133.29,133.26,7.504]
[1726594493307,31.404874,133.29,133.25,7.9866689]
[1726594493474,23.776884,133.26,133.25,0.4824689]
[1726594493873,23.902374,133.26,133.25,0.4824689]
[1726594494782,16.2324,133.29,133.26,7.5038]
[1726594494993,16.2324,133.29,133.25,0.4824689]
[1726594495784,16.2324,133.29,133.25,7.9869689]
[1726594496090,23.776884,133.28,133.25,7.9869689]
[1726594496693,23.776884,133.28,133.26,7.504]
[1726594497002,7.80651896,133.29,133.25,0.4824689]
[1726594497188,45.1473,133.32,133.28,7.503]
[1726594497395,7.80525768,133.31,133.28,7.503]
[1726594497589,7.80525768,133.31,133.3,7.5018]
[1726594498010,7.80525768,133.31,133.25,0.4824689]
[1726594498011,30.0,133.32,133.25,0.4824689]
[1726594498175,7.80426928,133.31,133.3,7.5017]
[1726594498507,30.0,133.32,133.3,7.5017]
[1726594498905,30.0,133.32,133.25,0.4824689]
[1726594500105,23.776884,133.31,133.25,0.4824689]
[1726594500410,23.776884,133.31,133.3,7.5018]
[1726594500594,23.776884,133.31,133.29,7.5022]
[1726594501107,23.776884,133.31,133.25,0.4824689]
[1726594501614,23.902374,133.31,133.29,7.5023]
[1726594502197,23.902374,133.31,133.28,7.5028]
[1726594502909,0.12549,133.3,133.27,7.5031]
[1726594503092,23.776884,133.31,133.29,7.5024]
[1726594503908,30.0,133.32,133.25,1.98314849]
[1726594504096,30.0,133.32,133.26,29.85923321]
[1726594504293,30.0,133.32,133.31,7.5013]
[1726594504815,7.8021843,133.38,133.35,7.4989]
[1726594506516,31.274984,133.37,133.29,20.0]
[1726594506678,31.274984,133.37,133.33,7.4997]
[1726594506879,23.776884,133.37,133.34,7.4995]
[1726594507081,0.12549,133.36,133.33,7.5001]
[1726594509509,0.12549,133.36,133.28,39.28033321]
[1726594509510,7.4992,133.35,133.31,7.5009]
[1726594510010,23.776884,133.34,133.32,7.5006]
[1726594510217,31.276984,133.34,133.3,7.5018]
[1726594510386,23.776884,133.34,133.28,15.5744]
[1726594510586,23.776884,133.34,133.32,7.5005]
[1726594511109,23.776884,133.35,133.32,7.5005]
[1726594512502,23.776884,133.35,133.33,7.5]
[1726594512820,7.8021843,133.38,133.34,7.4995]
[1726594512821,15.2996843,133.38,133.34,7.4995]
[1726594513106,7.8021843,133.38,133.36,7.4984]
[1726594514723,7.8021843,133.38,133.35,7.4988]
[1726594517514,7.8021843,133.38,133.37,7.4979]
[1726594518031,0.285778,133.39,133.37,7.4979]
[1726594520099,0.285778,133.39,133.36,7.4982]
[1726594520420,31.274284,133.38,133.35,7.4986]
[1726594520610,23.902374,133.38,133.35,7.4986]
[1726594521515,31.399874,133.38,133.34,7.4995]
[1726594521921,0.285778,133.39,133.3,22.0972]
[1726594522219,23.776884,133.37,133.35,7.4989]
[1726594523020,23.776884,133.37,133.34,7.4994]
[1726594524504,23.776884,133.37,133.35,7.4986]
[1726594524727,23.902374,133.38,133.35,7.4986]
[1726594525025,31.399774,133.38,133.35,7.4986]
[1726594525729,31.399774,133.38,133.34,7.4993]
[1726594526094,23.902374,133.38,133.35,7.4988]
[1726594526495,7.782878,133.39,133.35,7.4988]
[1726594526895,7.782878,133.39,133.34,7.4994]
[1726594526896,0.12549,133.38,133.34,7.4994]
[1726594527294,0.12549,133.38,133.32,7.5006]
[1726594527493,7.4987,133.36,133.33,7.5001]
[1726594527697,23.776884,133.35,133.33,7.5001]
[1726594528692,23.776884,133.35,133.32,7.5006]
[1726594529325,23.776884,133.35,133.33,7.5001]
[1726594530520,7.80498223,133.36,133.33,7.5001]
[1726594531196,7.80498223,133.36,133.34,7.4996]
[1726594531606,7.80498223,133.36,133.31,1.49985025]
[1726594532030,7.80498223,133.36,133.34,7.4992]
[1726594533506,7.80498223,133.36,133.35,8.99885198]
[1726594533817,7.80498223,133.36,133.35,7.499]
[1726594534945,0.285778,133.39,133.37,7.4978]
[1726594537014,0.285778,133.39,133.33,1.49964894]
[1726594537015,0.285778,133.39,133.38,7.4973]
[1726594537408,0.285778,133.39,133.37,7.4975]
[1726594537728,0.285778,133.39,133.36,7.4981]
[1726594538534,7.782878,133.39,133.35,7.4986]
[1726594538716,0.285778,133.39,133.36,7.4983]
[1726594540717,0.285778,133.39,133.37,7.4977]
[1726594540921,0.285778,133.39,133.36,7.4982]
[1726594541935,30.0,133.38,133.36,7.4982]
[1726594542130,30.0,133.38,133.37,7.4979]
[1726594546046,30.0,133.38,133.36,7.4983]
[1726594546230,30.0,133.38,133.32,21.9496]
[1726594546551,30.0,133.38,133.36,7.4984]
[1726594552149,30.0,133.38,133.37,7.4979]
[1726594554462,0.285778,133.39,133.37,7.4979]
[1726594556052,0.285778,133.39,133.38,7.4973]
[1726594556297,30.285778,133.39,133.38,7.4973]
[1726594558469,0.285778,133.39,133.38,7.4973]
[1726594559467,0.285778,133.39,133.37,7.4978]
[1726594561452,30.285778,133.39,133.37,7.4978]
[1726594564366,37.782878,133.39,133.36,7.4984]
[1726594564756,7.4973,133.38,133.34,7.4994]
[1726594564988,30.0,133.37,133.34,7.4994]
[1726594565661,30.0,133.37,133.35,7.499]
[1726594566549,30.0,133.37,133.32,21.9496]
[1726594566749,7.4986,133.36,133.28,15.14757976]
[1726594566975,30.0,133.35,133.28,15.14757976]
[1726594567554,30.0,133.35,133.33,7.4998]
[1726594567779,30.0,133.35,133.31,37.27657976]
[1726594568461,30.0,133.35,133.34,7.4996]
[1726594569169,15.5723936,133.39,133.35,7.4985]
[1726594569680,30.0,133.36,133.35,7.4985]
[1726594570877,0.285778,133.39,133.38,7.4973]
[1726594571171,30.285778,133.39,133.38,7.4973]
[1726594571748,30.285778,133.39,133.38,8.99650212]
[1726594572356,30.285778,133.39,133.38,7.4973]
[1726594572884,0.285778,133.39,133.38,7.4973]
[1726594573077,30.285778,133.39,133.38,7.4973]
[1726594574482,0.285778,133.39,133.38,7.4973]
[1726594574776,0.285778,133.39,133.38,24.14389681]
[1726594576791,0.285778,133.39,133.38,7.4973]
[1726594578777,0.285778,133.39,133.38,8.99632532]
[1726594579582,0.285778,133.39,133.38,7.4973]
[1726594580162,0.285778,133.39,133.36,22.129]
[1726594580370,0.285778,133.39,133.36,7.498]
[1726594580568,7.782578,133.39,133.35,7.4987]
[1726594581676,15.57565194,133.39,133.35,7.4987]
[1726594582872,30.0,133.38,133.35,7.4987]
[1726594583077,30.0,133.38,133.36,8.99791852]
[1726594583289,30.0,133.38,133.37,7.4979]
[1726594583583,30.0,133.38,133.36,15.14757976]
[1726594583584,0.285778,133.39,133.38,7.4973]
[1726594585781,0.285778,133.39,133.37,7.4977]
[1726594586780,0.285778,133.39,133.38,7.4973]
[1726594595263,0.285778,133.39,133.38,24.14385118]
[1726594595686,0.285778,133.39,133.38,8.99627142]
[1726594596597,0.285778,133.39,133.38,24.14385118]
[1726594596793,0.285778,133.39,133.38,74.41672518]
[1726594596974,0.285778,133.39,133.38,74.54221518]
[1726594597386,0.2598151,133.43,133.42,7.4951]
[1726594597695,0.2598151,133.43,133.42,22.64267976]
[1726594597887,0.2598151,133.43,133.42,7.4951]
[1726594598197,0.2598151,133.43,133.42,8.99361505]
[1726594599085,0.2598151,133.43,133.42,7.4951]
[1726594601376,0.2598151,133.43,133.4,7.4959]
[1726594601571,0.2598151,133.43,133.41,7.4952]
[1726594601774,0.2598151,133.43,133.4,7.4961]
[1726594603492,30.2598151,133.43,133.4,7.4961]
[1726594603803,30.2598151,133.43,133.41,7.4956]
[1726594604985,7.4956,133.42,133.35,6.1049]
[1726594605185,37.7545151,133.43,133.35,6.1049]
[1726594605380,37.7545151,133.43,133.39,7.4968]
[1726594605687,37.7545151,133.43,133.38,7.4971]
[1726594606296,37.7545151,133.43,133.39,7.4967]
[1726594606511,30.2598151,133.43,133.39,7.4967]
[1726594606680,30.2598151,133.43,133.4,1.49897824]
[1726594606996,30.2598151,133.43,133.37,1.49891858]
[1726594608315,30.2598151,133.43,133.41,7.4955]
[1726594608613,0.2598151,133.43,133.41,7.4955]
[1726594610503,0.2598151,133.43,133.42,8.99401934]
[1726594610711,30.2598151,133.43,133.42,7.4951]
[1726594611908,30.2598151,133.43,133.42,31.397474]
[1726594612085,0.2598151,133.43,133.42,31.397474]
[1726594612489,0.2598151,133.43,133.42,7.4951]
[1726594615019,30.2598151,133.43,133.41,7.4952]
[1726594616193,30.2598151,133.43,133.42,7.4951]
[1726594616612,0.2598151,133.43,133.42,7.4951]
[1726594620720,0.2598151,133.43,133.41,7.4955]
[1726594621212,0.2598151,133.43,133.42,8.99400081]
[1726594621421,0.2598151,133.43,133.42,7.4951]
[1726594621809,0.2598151,133.43,133.42,66.59596593]
[1726594622121,0.2598151,133.43,133.42,59.57552718]
[1726594622320,0.2598151,133.43,133.42,83.47790118]
[1726594623902,0.2598151,133.43,133.42,91.98199691]
[1726594625203,0.2598151,133.43,133.42,90.48373897]
[1726594625903,0.2598151,133.43,133.42,91.98202975]
[1726594626231,0.2598151,133.43,133.42,90.35824897]
[1726594626429,0.2598151,133.43,133.42,90.48373897]
[1726594626603,0.2598151,133.43,133.42,91.98208172]
[1726594627230,0.2598151,133.43,133.42,90.48373897]
[1726594629616,0.2598151,133.43,133.42,27.4951]
[1726594635727,0.2598151,133.43,133.42,53.02139255]
[1726594635927,0.2598151,133.43,133.42,76.64316752]
[1726594636930,1.51e-05,133.43,133.42,76.64316752]
[1726594639926,1.51e-05,133.43,133.42,75.14473897]
[1726594641119,1.51e-05,133.43,133.42,76.64305421]
[1726594641424,4.19001439,133.47,133.46,7.4928]
[1726594641930,4.19001439,133.47,133.46,8.99086457]
[1726594642307,0.2598151,133.47,133.46,8.99086457]
[1726594642504,4.19001439,133.47,133.46,8.99086457]
[1726594642739,0.2598151,133.47,133.46,8.99086457]
[1726594642915,0.2598151,133.47,133.46,7.4928]
[1726594643311,4.19001439,133.47,133.46,7.4928]
[1726594643518,0.2598151,133.47,133.46,7.4928]
[1726594644025,0.2598151,133.47,133.46,22.6092961]
[1726594644236,4.19001439,133.47,133.46,22.6092961]
[1726594644537,0.2598151,133.47,133.46,22.6092961]
[1726594644735,4.19001439,133.47,133.46,22.6092961]
[1726594644944,0.2598151,133.47,133.46,22.6092961]
[1726594645235,4.19001439,133.47,133.46,22.6092961]
[1726594645638,0.2598151,133.47,133.46,22.6092961]
[1726594645817,4.19001439,133.47,133.46,22.6092961]
[1726594646163,1.439e-05,133.5,133.49,7.4911]
[1726594646311,0.2598151,133.51,133.5,7.4906]
[1726594646511,0.2598151,133.51,133.5,8.98841614]
[1726594646740,0.2598151,133.51,133.5,24.10491224]
[1726594646917,0.2598151,133.51,133.5,22.6070961]
[1726594649344,0.2598151,133.51,133.5,46.5094701]
[1726594649515,0.2598151,133.51,133.5,66.5094701]
[1726594651021,0.2598151,133.51,133.5,27.4906]
[1726594651241,0.2598151,133.51,133.5,42.6070961]
[1726594652320,0.2598151,133.51,133.5,7.4906]
[1726594652818,0.2598151,133.51,133.48,7.4914]
[1726594653017,0.2598151,133.51,133.48,7.4913]
[1726594653439,0.2598151,133.51,133.44,15.1164961]
[1726594653642,7.7500151,133.51,133.47,7.4921]
[1726594653949,7.4913,133.49,133.44,7.4939]
[1726594654245,7.4919,133.48,133.43,7.4944]
[1726594654452,6.1623,133.48,133.44,7.4939]
[1726594655322,6.1623,133.48,133.45,7.4931]
[1726594656526,6.1623,133.48,133.46,7.4928]
[1726594658640,37.78676931,133.5,133.47,7.4923]
[1726594659032,7.78676931,133.5,133.47,7.4923]
[1726594659418,7.78676931,133.5,133.43,23.63691387]
[1726594659619,6.2666151,133.51,133.44,45.40054881]
[1726594660019,0.2598151,133.51,133.5,7.4906]
[1726594660219,0.2598151,133.51,133.45,23.63691387]
[1726594660420,0.2598151,133.51,133.49,7.491]
[1726594661854,0.2598151,133.51,133.5,7.4906]
[1726594665728,0.2598151,133.51,133.49,7.4911]
[1726594665929,0.2598151,133.51,133.44,36.059]
[1726594666133,0.2598151,133.51,133.48,7.4913]
[1726594666943,0.2598151,133.51,133.5,7.4906]
[1726594667256,0.2598151,133.51,133.49,7.4909]
[1726594671941,7.7499151,133.51,133.48,7.4917]
[1726594672149,0.2598151,133.51,133.48,7.4917]
[1726594673047,30.2598151,133.51,133.48,7.4917]
[1726594674147,30.2598151,133.51,133.49,7.4911]
[1726594675653,30.2598151,133.51,133.44,20.0]
[1726594675654,30.2598151,133.51,133.5,7.4906]
[1726594675861,30.2598151,133.51,133.45,1.4983175]
[1726594676041,30.2598151,133.51,133.5,7.4906]
[1726594676240,0.2598151,133.51,133.5,7.4906]
[1726594682643,1.51e-05,133.51,133.5,81.35517787]
[1726594682857,0.5084318,133.55,133.54,7.4883]
[1726594687984,35.34150442,133.64,133.54,7.4883]
[1726594687985,0.2598151,133.67,133.66,7.4816]
[1726594688151,19.46237934,133.76,133.69,20.0]
[1726594688471,0.5499054,133.76,133.75,7.4766]
[1726594688672,0.5857737,133.78,133.77,7.4755]
[1726594688968,0.337157,133.84,133.83,7.4721]
[1726594690159,0.337157,133.84,133.75,23.63691387]
[1726594690160,0.337157,133.84,133.76,20.0]
[1726594690468,0.337157,133.84,133.7,44.027864]
[1726594690666,0.337157,133.84,133.7,43.902374]
[1726594690977,0.337157,133.84,133.68,15.1646]
[1726594690978,7.4738,133.8,133.68,15.1646]
[1726594691166,60.0,133.83,133.68,15.1646]
[1726594691167,7.4745,133.79,133.68,15.1646]
[1726594691370,23.902374,133.78,133.68,15.1646]
[1726594691956,31.377274,133.78,133.65,0.337157]
[1726594692887,0.12549,133.78,133.65,0.337157]
[1726594693255,7.60039,133.78,133.65,0.337157]
[1726594693575,0.12549,133.74,133.65,0.337157]
[1726594693949,0.12549,133.72,133.65,0.337157]
[1726594694156,23.776884,133.73,133.65,0.337157]
[1726594694683,31.380074,133.74,133.65,0.337157]
[1726594696156,7.4777,133.73,133.65,0.337157]
[1726594696363,23.902374,133.74,133.65,0.337157]
[1726594696364,7.4789,133.71,133.65,0.337157]
[1726594696566,0.12549,133.74,133.65,0.337157]
[1726594696874,43.902374,133.75,133.65,0.337157]
[1726594697058,23.902374,133.71,133.65,0.337157]
[1726594697256,0.12549,133.72,133.65,0.337157]
[1726594697565,31.379074,133.75,133.65,0.337157]
[1726594697776,0.12549,133.75,133.65,0.337157]
[1726594697980,13.629,133.77,133.65,1.83300572]
[1726594698182,6.1534,133.77,133.65,1.83300572]
[1726594698353,6.1534,133.77,133.65,39.46983287]
[1726594698555,6.1534,133.77,133.66,20.0]
[1726594698896,13.6291,133.77,133.66,20.0]
[1726594699089,7.4764,133.76,133.66,20.0]
[1726594699671,23.902374,133.75,133.65,0.337157]
[1726594700482,23.902374,133.75,133.65,20.337157]
[1726594701355,0.12549,133.75,133.65,20.337157]
[1726594703356,7.60229,133.75,133.65,20.337157]
[1726594703956,0.12549,133.73,133.65,0.337157]
[1726594704182,23.776884,133.72,133.65,0.337157]
[1726594704583,0.12549,133.73,133.65,0.337157]
[1726594707091,7.60329,133.73,133.65,0.337157]
[1726594707264,0.12549,133.73,133.65,0.337157]
[1726594707788,7.60329,133.73,133.65,0.337157]
[1726594707976,7.4784,133.72,133.65,0.337157]
[1726594708383,7.60339,133.73,133.65,0.337157]
[1726594708691,23.776884,133.72,133.65,0.337157]
[1726594709771,31.255284,133.72,133.65,0.337157]
[1726594710390,7.4789,133.71,133.65,0.337157]
[1726594710576,30.0,133.7,133.65,0.337157]
[1726594715689,30.0,133.7,133.67,20.0]
[1726594715902,1.30041151,133.76,133.69,20.0]
[1726594716192,7.79121446,133.79,133.7,1.49542757]